Cogmind - Beta 15 @@@ ROGUE MODE // 2025.05.18 @ 00:54:31 Player: Windjigo Result: Destroyed by P-60 Hacker with Shock Rifle Performance ------------- Evolutions (4) 2000 Regions Visited (6) 1200 Robots Destroyed (64) 320 Value Destroyed (1499) 1499 Prototype IDs (8) 160 Alien Tech Used (0) 0 Bonus (1306) 1306 TOTAL SCORE: 6485 Bonus ------- High Alert Combat Kills 16 Follower Combat Kills 521 Registered with UFD 300 Met Optimus in HQ 500 Friendly Fire -31 Cogmind --------- Core Integrity 0/850 Matter 5/300 Energy 51/100 System Corruption 14% Temperature Cool (0) Movement Treading (160) Location -6/Factory Parts ------- > --- POWER (2) -------- (None) > --- PROPULSION (3) --- Improved Medium Treads Improved Medium Treads > --- UTILITY (7) ------ Large Storage Unit Advanced Signal Interpreter Focal Shield Hacking Suite A0-MCA's Component Scanner System Restoration Module > --- WEAPON (3) ------- (None) > --- INVENTORY (15) --- Plasma Cutter Botcube Peak State ------------ > --- POWER ------------ Heavy Ion Engine Cooled Ion Engine > --- PROPULSION ------- Advanced Treads Advanced Treads Improved Medium Treads > --- UTILITY ---------- Scrap Suit Large Storage Unit Sensor Array Advanced Signal Interpreter Improved Light Armor Plating Hacking Suite > --- WEAPON ----------- Plasma Rifle Gauss Cannon Mini Assault Cannon > --- INVENTORY -------- Improved Medium Treads Improved Medium Treads Scrap Suit Improved Cooling System High-capacity Matter Pod Advanced ECM Suite Improved Reaction Control System Focal Shield Improved Shield Generator A0-MCA's Component Scanner System Restoration Module Plasma Cutter CPS Tube Botcube [Rating: 58] Favorites ----------- Power Cooled Ion Engine Engine Cooled Ion Engine Propulsion Advanced Treads Treads Advanced Treads Wheel Wheel Utility Hacking Suite Device Scrap Suit Storage High-capacity Matter Pod Processor Advanced Signal Interpreter Hackware Hacking Suite Protection Light Armor Plating Weapon Mini Assault Cannon Energy Gun Plasma Rifle Energy Cannon Advanced Beam Cannon Ballistic Gun Light Assault Rifle Ballistic Cannon Mini Assault Cannon Special Weapon Plasma Cutter Slashing Weapon Companion Sword Build | -11 -10 -9 -9 -9 -9 -6 ------- Run | Yrd Mat Mat Sto Rec Scr Fac Slots Evolved 8 | . . 2 . . . 6 Power 1 | . . . . . . 1 Propulsion 1 | . . . . . . 1 Utility 5 | . . 2 . . . 3 Weapon 1 | . . . . . . 1 Parts Attached 57 | 9 7 4 16 . 2 19 Power 9 | 2 1 1 4 . . 1 Engine 9 | 2 1 1 4 . . 1 Core . | . . . . . . . Reactor . | . . . . . . . Propulsion 9 | 2 2 . 2 . . 3 Treads 5 | . . . 2 . . 3 Leg . | . . . . . . . Wheel 4 | 2 2 . . . . . Hover . | . . . . . . . Flight . | . . . . . . . Utility 22 | 2 2 2 4 . 1 11 Device 10 | 1 1 1 . . . 7 Storage 3 | 1 1 . . . 1 . Processor 2 | . . . . . . 2 Hackware 1 | . . 1 . . . . Protection 6 | . . . 4 . . 2 Artifact . | . . . . . . . Weapon 17 | 3 2 1 6 . 1 4 Energy Gun 6 | 2 . . 2 . . 2 Energy Cannon 2 | . 1 . 1 . . . Ballistic Gun 2 | 1 . . 1 . . . Ballistic Cannon 5 | . 1 1 1 . . 2 Launcher . | . . . . . . . Special Weapon 1 | . . . 1 . . . Impact Weapon . | . . . . . . . Slashing Weapon 1 | . . . . . 1 . Piercing Weapon . | . . . . . . . Special Melee Weapon . | . . . . . . . Unidentified Prototypes 8 | . . . 7 . 1 . Parts Lost 18 | . . . 2 . . 16 Power 2 | . . . . . . 2 Propulsion 4 | . . . 1 . . 3 Utility 7 | . . . 1 . . 6 Weapon 5 | . . . . . . 5 Highest Loss Streak 15 | . . . 1 . . 15 To Critical Strikes . | . . . . . . . Average Backups 8 | 3 7 7 7 8 9 10 Power 1 | . 1 1 1 2 1 . Propulsion . | 1 3 2 . . . . Utility 4 | . 1 2 3 5 5 7 Weapon . | 1 1 . . . . . Tool/Special . | . . . . . . . Unused Backups 16 | . 2 . 8 . . 6 Power 1 | . . . 1 . . . Propulsion 4 | . 2 . 2 . . . Utility 8 | . . . 4 . . 4 Weapon 1 | . . . 1 . . . Tool/Special 2 | . . . . . . 2 Average Slot Usage (%) 95 | . 98 99 99 100 99 76 Engine 11 | . 14 11 11 11 11 11 Treads 18 | . . . 21 22 22 12 Wheel 1 | . 28 22 . . . . Device 2 | . 5 10 1 . . 12 Storage 20 | . 20 22 22 22 22 11 Hackware 9 | . . 10 11 11 11 6 Protection 8 | . . . 9 11 11 5 Energy Cannon 9 | . 12 11 10 11 11 4 Ballistic Cannon 10 | . 12 11 10 11 10 7 Peak Build Rating 58 | 7 8 16 24 24 29 58 Average Rating 25 | 5 7 13 21 24 25 41 On Entrance 15 | . 7 8 14 24 24 28 Naked Turns . | . . . . . . . Heaviest Build 66 | 14 20 23 28 28 43 66 Greatest Support 74 | 20 20 20 44 44 44 74 Greatest Overweight (x) 10 | 2 . 1 1 . . 10 Average Overweight (x) . | . . 1 . . . 1 Largest Inventory Capacity 15 | 8 8 8 8 8 15 15 Average Capacity 10 | 7 8 8 8 8 10 15 Most Carried 15 | 7 8 8 8 8 15 15 Average Carried 9 | 3 7 7 7 8 10 12 Final Capacity 15 | 8 8 8 8 8 15 15 Final Carried 15 | 6 8 8 8 8 15 2 Class Distribution -------------------- 68% | Commander-Mutant 28% | Mutant Dominant Class ---------------- Mutant | -10/Materials Mutant | -9/Materials Commander-Mutant | -9/Storage Commander-Mutant | -9/Recycling Commander-Mutant | -9/Scraptown Mutant | -6/Factory Resources | -11 -10 -9 -9 -9 -9 -6 ----------- Run | Yrd Mat Mat Sto Rec Scr Fac Matter Collected 1789 | 255 364 48 843 34 22 223 Remotely . | . . . . . . . Salvage Created 1958 | 79 458 46 931 102 . 342 Parts 134 | 10 26 2 67 11 . 18 Haulers Intercepted 7 | . 1 . 6 . . . Recyclers Shooed 6 | . 2 . 1 . . 3 Parts Field Recycled . | . . . . . . . Retrieved Matter . | . . . . . . . Parts Self-Destructed . | . . . . . . . Prevented . | . . . . . . . Kills | -11 -10 -9 -9 -9 -9 -6 ------- Run | Yrd Mat Mat Sto Rec Scr Fac Combat Hostiles Destroyed 36 | . 5 1 20 2 . 8 Guns 1 | . . . . . . 1 Cannons 35 | . 5 1 20 2 . 7 Classes Destroyed 13 | 1 6 1 3 . . 2 Worker 5 | . . . 4 . . 1 Builder 2 | . . . 1 . . 1 Tunneler 5 | 5 . . . . . . Hauler 7 | . 1 . 6 . . . Recycler 6 | . 4 . 1 . . 1 Operator 1 | . 1 . . . . . Watcher 2 | . 2 . . . . . Swarmer 11 | . 3 . 7 . . 1 Grunt 9 | . 2 . 7 . . . Duelist 1 | . . . 1 . . . Sentry 11 | . . 1 5 2 . 3 Hunter 2 | . . . . . . 2 Programmer 2 | . . . . . . 2 Best Kill Streak 11 | 4 11 1 5 1 . 5 Combat Bots Only 4 | . 2 1 4 1 . 3 Max Kills in Single Turn 3 | 1 1 1 2 1 . 3 Gunslinging . | . . . . . . . Exploded . | . . . . . . . Melee . | . . . . . . . Uniques/NPCs Destroyed . | . . . . . . . Combat | -11 -10 -9 -9 -9 -9 -6 -------- Run | Yrd Mat Mat Sto Rec Scr Fac Hostile Shots Fired 480 | . 23 . 70 6 . 381 Missed 113 | . 6 . 13 1 . 93 Hits 367 | . 17 . 57 5 . 288 Melee 2 | . . . 2 . . . Projectile 365 | . 17 . 55 5 . 288 AOE 2 | . . . . . . 2 Critical Strikes 8 | . . . 1 1 . 6 Part Disruptions 3 | . . . . . . 3 Damage Taken 4960 | . 157 32 667 72 . 4032 Core 1041 | . 42 . 128 12 . 859 Absorbed by Shields 87 | . . . . . . 87 Ignored by Resistances 7 | . . . . . . 7 Regen/Repaired (Parts) 151 | . . . 151 . . . Core Remaining (%) 82 | 100 83 . . . 65 . Volleys Fired 171 | 12 20 6 80 6 . 47 Largest 3 | 2 2 2 2 2 . 3 Hottest 159 | 70 90 97 108 108 . 159 Shots Fired 347 | 24 40 12 156 12 . 103 Gun 31 | 24 . . . . . 7 Cannon 316 | . 40 12 156 12 . 96 Launcher . | . . . . . . . Special . | . . . . . . . Kinetic 197 | 12 20 6 80 6 . 73 Thermal 150 | 12 20 6 76 6 . 30 Explosive . | . . . . . . . Electromagnetic . | . . . . . . . Robot Hit Streak 13 | 4 5 3 13 6 . 7 Robot Miss Streak 5 | 2 3 2 3 1 . 5 Penetration Max . | . . . . . . . Secondary Targets . | . . . . . . . Shots Hit Robots 199 | 13 19 4 88 9 . 66 Core Hits 85 | 7 13 2 33 2 . 28 Critical Kills . | . . . . . . . Critical Parts Destroyed . | . . . . . . . Critical Strikes 11 | 3 2 . 3 1 . 2 Burn 3 | 3 . . . . . . Blast 8 | . 2 . 3 1 . 2 Melee Attacks . | . . . . . . . Impact . | . . . . . . . Slashing . | . . . . . . . Piercing . | . . . . . . . Sneak Attacks . | . . . . . . . Combat Hostiles . | . . . . . . . Follow-up Attacks . | . . . . . . . Damage Inflicted 4639 | 136 360 90 2100 227 . 1726 Guns 180 | 136 . . . . . 44 Cannons 4270 | . 360 90 2100 227 . 1493 Explosions 186 | . . . . . . 186 Melee . | . . . . . . . Ramming 3 | . . . . . . 3 Kinetic 3013 | 48 203 56 1367 145 . 1194 Thermal 1437 | 88 157 34 733 82 . 343 Explosive 186 | . . . . . . 186 Electromagnetic . | . . . . . . . Impact . | . . . . . . . Slashing . | . . . . . . . Piercing . | . . . . . . . Highest Corruption 13 | . . . . . . 13 Average Corruption 2 | . . . . . . 2 Corruption Purged . | . . . . . . . Corruption Blocked . | . . . . . . . Effects 12 | . . . . . . 12 Message Errors 5 | . . . . . . 5 Matter Fused 3 | . . . . . . 3 Heat Flow Errors 1 | . . . . . . 1 Energy Discharges 2 | . . . . . . 2 Misfires 1 | . . . . . . 1 Overload Shots . | . . . . . . . Overflow Damage 113 | . 26 . 18 . . 69 Projectiles 53 | . 26 . 18 . . 9 Explosions 60 | . . . . . . 60 Melee . | . . . . . . . Knockbacks 24 | . 4 . 9 . . 11 Impact . | . . . . . . . Kinetic 21 | . 4 . 8 . . 9 Secondary 3 | . . . 1 . . 2 Self-Inflicted Damage . | . . . . . . . Shots . | . . . . . . . Rammed 6 | . . . . . . 6 Targets Rammed 6 | . . . . . . 6 Kicked . | . . . . . . . Crushed . | . . . . . . . Highest Temperature 494 | 90 153 54 314 144 . 494 Average Temperature 91 | 36 54 20 80 52 . 153 Received Heat Transfer 397 | . 33 . 168 45 . 151 Effects 9 | . . . 1 . . 8 Shutdowns 2 | . . . . . . 2 Energy Bleed 1 | . . . . . . 1 Interference 3 | . . . . . . 3 Matter Decay 1 | . . . 1 . . . Damage (minor) 2 | . . . . . . 2 Siege Activations . | . . . . . . . Martial Activations . | . . . . . . . Shielding Activations . | . . . . . . . Robots Disrupted . | . . . . . . . Combat Hostiles . | . . . . . . . Robots Corrupted . | . . . . . . . Combat Hostiles . | . . . . . . . Parts Fried . | . . . . . . . Impact Corruptions . | . . . . . . . Robots Melted . | . . . . . . . Combat Hostiles . | . . . . . . . Parts Melted 6 | 2 . . 3 . . 1 Heat Transferred 3070 | 481 333 74 1416 148 . 618 Parts Sabotaged . | . . . . . . . Parts Stolen . | . . . . . . . Parts Stripped . | . . . . . . . Power Chain Reactions . | . . . . . . . Alert | -11 -10 -9 -9 -9 -9 -6 ------- Run | Yrd Mat Mat Sto Rec Scr Fac Maximum Alert Level 2 | . . . 2 . . . Low Security (%) 88 | 100 100 100 72 100 . 100 Level 1 6 | . . . 14 . . . Level 2 5 | . . . 13 . . . Level 3 . | . . . . . . . Level 4 . | . . . . . . . Level 5 . | . . . . . . . High Security . | . . . . . . . Max Security . | . . . . . . . Peak Influence 510 | 10 153 59 510 159 . 123 Initial 159 | . . 59 . 159 . . Average 75 | 2 67 27 137 48 . 8 Influence Increases 2292 | 25 238 54 1375 225 . 375 Destroy 0b10 Robot/C 1060 | . 100 20 680 80 . 180 Destroy 0b10 Robot/NC 160 | 25 40 . 75 5 . 15 Destroy Leader 282 | . 26 10 176 . . 70 Allied During Kill 347 | . . . 293 34 . 20 Successful Hack 69 | . 25 9 16 15 . 4 Select Force Hacks 120 | . . . 30 90 . . Disable Machine 120 | . 15 15 75 . . 15 Destroy Structure 44 | . 2 . 15 1 . 26 Partial Spotted 15 | . . . 15 . . . Lose Combat Pursuer 75 | . 30 . . . . 45 Influence Decreases 2287 | 25 97 195 965 635 . 370 Entered New Map 333 | . . 82 . 251 . . Time Decay 1365 | 25 97 113 545 384 . 201 Lost Part 180 | . . . 20 . . 160 Lost Ally 109 | . . . 100 . . 9 Purge Threat 300 | . . . 300 . . . Squads Dispatched 14 | . . 1 9 . . 4 Investigation 5 | . . . 5 . . . Extermination 3 | . . . . . . 3 Reinforcement 4 | . . 1 2 . . 1 Assault 2 | . . . 2 . . . Garrison . | . . . . . . . Intercept . | . . . . . . . Searches Triggered . | . . . . . . . Construction Impeded 1 | . . . . . . 1 Haulers Reinforced . | . . . . . . . Active Scanning Responses . | . . . . . . . Cargo Convoy Interrupts 1 | . . . . . . 1 Stealth | -11 -10 -9 -9 -9 -9 -6 --------- Run | Yrd Mat Mat Sto Rec Scr Fac Distress Signals 7 | . 2 2 . . . 3 Communications Jammed . | . . . . . . . Distress Signals . | . . . . . . . Times Spotted 98 | . 12 6 38 3 . 39 Peak Tracking Total 19 | . 4 5 6 1 . 19 Tactical Retreats 3 | . 1 . . . . 2 Traps | -11 -10 -9 -9 -9 -9 -6 ------- Run | Yrd Mat Mat Sto Rec Scr Fac Traps Triggered 4 | . . 3 1 . . . Indirectly . | . . . . . . . Trap Hack Attempts . | . . . . . . . Triggered . | . . . . . . . Disarmed . | . . . . . . . Reprogrammed . | . . . . . . . Reused . | . . . . . . . Traps Extracted . | . . . . . . . Installed . | . . . . . . . Triggered . | . . . . . . . Machines | -11 -10 -9 -9 -9 -9 -6 ---------- Run | Yrd Mat Mat Sto Rec Scr Fac Machines Disabled 8 | . 1 1 5 . . 1 Max in Single Turn 1 | . 1 1 1 . . 1 Garrison Access 1 | . . . 1 . . . Machines Repaired . | . . . . . . . Machines Dismantled 1 | . . . 1 . . . Machines Sabotaged . | . . . . . . . Overloaded Fab Kills . | . . . . . . . Hacking | -11 -10 -9 -9 -9 -9 -6 --------- Run | Yrd Mat Mat Sto Rec Scr Fac Machines Accessed 46 | . 4 2 17 11 7 5 Terminals 25 | . 3 1 12 6 . 3 Fabricators . | . . . . . . . Repair Stations 2 | . . . 2 . . . Recycling Units 10 | . 1 1 2 5 . 1 Scanalyzers . | . . . . . . . Garrison Access 2 | . . . 1 . . 1 Total Hacks 140 | . 15 5 55 34 24 7 Successful 99 | . 8 5 36 23 24 3 Failed 41 | . 7 . 19 11 . 4 Catastrophic 5 | . 1 . 1 2 . 1 Database Lockouts . | . . . . . . . Manual 41 | . 1 2 15 21 . 2 Terminals 86 | . 11 4 41 25 . 5 Fabricators . | . . . . . . . Repair Stations 8 | . . . 8 . . . Recycling Units 19 | . 4 1 4 9 . 1 Scanalyzers . | . . . . . . . Garrison Access 3 | . . . 2 . . 1 Terminal Hacks 58 | . 5 3 18 7 24 1 Record 25 | . . . 1 1 23 . Part Schematic 1 | . . . . 1 . . Open Door 5 | . . . 4 . 1 . Open DSF 1 | . . . . . . 1 Branch Access Points 3 | . 1 . 1 1 . . Alert Level 4 | . . 1 2 1 . . Unreport Threat 2 | . . . 2 . . . Locate Traps 3 | . 2 . 1 . . . Investigation Status 2 | . . 1 1 . . . Reinforcement Status 1 | . . . 1 . . . Recall Reinforcements 1 | . . . 1 . . . Hauler Manifests 3 | . 1 . 2 . . . Registered Components 1 | . . . . 1 . . Registered Prototypes 1 | . . . . 1 . . Zone Layout 5 | . 1 1 2 1 . . Fabricator Hacks . | . . . . . . . Repair Station Hacks 8 | . . . 8 . . . Scan Component 4 | . . . 4 . . . Repair 4 | . . . 4 . . . Recycling Unit Hacks 12 | . 2 1 3 5 . 1 Report Inventory 10 | . 1 1 2 5 . 1 Retrieve Components 2 | . 1 . 1 . . . Scanalyzer . | . . . . . . . Garrison Access Hacks 1 | . . . 1 . . . Seal Access 1 | . . . 1 . . . Unauthorized Hacks 20 | . 1 1 6 11 . 1 Terminals 14 | . . 1 5 7 . 1 Assimilate 2 | . . 1 . 1 . . Botnet 12 | . . . 5 6 . 1 Fabricators . | . . . . . . . Repair Stations . | . . . . . . . Recycling Units 6 | . 1 . 1 4 . . Monitor 2 | . 1 . . 1 . . Tunnel 4 | . . . 1 3 . . Scanalyzers . | . . . . . . . Garrison Access . | . . . . . . . Data Cores Recovered . | . . . . . . . Used . | . . . . . . . Hacking Detections 28 | . 4 1 13 7 . 3 Full Trace Events 14 | . 1 1 7 5 . . Feedback Events . | . . . . . . . Feedback Blocked . | . . . . . . . Robot Schematics Acquired . | . . . . . . . Robots Built . | . . . . . . . Authchips . | . . . . . . . Time . | . . . . . . . Total Robot Build Rating . | . . . . . . . Part Schematics Acquired 1 | . . . . 1 . . Parts Built . | . . . . . . . Authchips . | . . . . . . . Time . | . . . . . . . Total Part Build Rating . | . . . . . . . Parts Repaired 4 | . . . 4 . . . Time 122 | . . . 122 . . . Parts Recycled . | . . . . . . . Recycled Matter . | . . . . . . . Retrieved Matter . | . . . . . . . Retrieved Components 13 | . 3 . 10 . . . Parts Scanalyzed . | . . . . . . . Part Schematics Acquired . | . . . . . . . Parts Damaged . | . . . . . . . Bothacking | -11 -10 -9 -9 -9 -9 -6 ------------ Run | Yrd Mat Mat Sto Rec Scr Fac Used RIF Installer . | . . . . . . . Robots Hacked . | . . . . . . . Non-combat . | . . . . . . . Combat . | . . . . . . . Robot Hacks Applied . | . . . . . . . Relay Couplers Released . | . . . . . . . Fabnet Peak Effective % . | . . . . . . . Robots Rewired . | . . . . . . . Allies Hacked 3 | . . . . . . 3 Hacks Repelled . | . . . . . . . Allies | -11 -10 -9 -9 -9 -9 -6 -------- Run | Yrd Mat Mat Sto Rec Scr Fac Total Allies 12 | . . . 12 . . . Largest Group 10 | . . . 10 7 5 5 Highest-Rated Group 134 | . . . 134 86 71 71 Highest-Rated Ally 31 | . . . 31 31 31 31 Total Orders . | . . . . . . . Ally Attacks 174 | . . . 115 23 . 36 Total Damage 1741 | . . . 1105 222 . 414 Kills 21 | . . . 17 3 . 1 Allies Corrupted . | . . . . . . . Allies Melted . | . . . . . . . Intel | -11 -10 -9 -9 -9 -9 -6 ------- Run | Yrd Mat Mat Sto Rec Scr Fac Active Infowar (turns) 796 | 6 107 275 215 . . 193 Sensors 784 | . 101 275 215 . . 193 Seismic 12 | 6 6 . . . . . Robot Analysis Total . | . . . . . . . Derelict Logs Recovered . | . . . . . . . Drone Launches . | . . . . . . . Drone Recoveries . | . . . . . . . Exploration | -11 -10 -9 -9 -9 -9 -6 ------------- Run | Yrd Mat Mat Sto Rec Scr Fac Turns Passed 7973 | 121 260 281 2319 1320 2376 1296 Spaces Moved 4531 | 85 147 222 1093 861 1625 498 Core 34 | 16 . . . . . 18 Treads 4032 | . . . 1066 861 1625 480 Legs . | . . . . . . . Wheels 465 | 69 147 222 27 . . . Hover . | . . . . . . . Flight . | . . . . . . . Fastest Speed 50 | 50 80 95 95 145 145 150 Average Speed 146 | 76 80 95 143 145 145 216 Slowest Speed 550 | 150 80 95 145 145 145 550 Overloaded Moves . | . . . . . . . Propulsion Burnouts . | . . . . . . . Robots Hopped . | . . . . . . . Potential Cave-ins . | . . . . . . . Cave-ins Triggered . | . . . . . . . Exploration Rate (%) 50 | 4 27 19 95 99 93 15 Regions Visited 6 Branch Regions 3 Pre-discovered Areas 4 | . . . 1 3 . . Known Exits Taken 1 | . . . 1 . . . Unknown Exits Taken 5 | 1 1 1 . 1 1 . Scrap Searched 5 | . . . . . 5 . Spaces Dug . | . . . . . . . Terrain Destroyed 41 | . . . 12 1 . 28 Melee . | . . . . . . . Projectile 22 | . . . 12 1 . 9 AOE 19 | . . . . . . 19 Terrain Rammed . | . . . . . . . Walls Destroyed . | . . . . . . . Machines Disabled . | . . . . . . . Actions | -11 -10 -9 -9 -9 -9 -6 --------- Run | Yrd Mat Mat Sto Rec Scr Fac Total 5499 | 116 249 280 1674 922 1646 612 Wait 596 | . 62 35 424 53 7 15 Move 4525 | 84 146 221 1092 860 1624 498 Hop . | . . . . . . . Pick Up 63 | 11 7 6 20 1 7 11 Fast Attach 18 | 2 1 2 8 . 2 3 Attach 28 | 5 . 2 7 . . 14 Detach 2 | . . . 1 . . 1 Swap 28 | 2 6 3 10 1 1 5 Drop 54 | . 7 5 24 1 5 12 Fire 171 | 12 20 6 80 6 . 47 Melee . | . . . . . . . Ram 5 | . . . . . . 5 Kick . | . . . . . . . Crush 1 | . . . . . . 1 Escape Stasis . | . . . . . . . Rewire . | . . . . . . . Trap . | . . . . . . . Miscellaneous 8 | . . . 8 . . . Route ------- -11/Scrapyard -10/Materials (discovered 2 exits: *Mat / Min) -9/Materials (discovered 2 exits: [*Mat] / *Sto) -9/Storage (discovered 2 exits: [*Mat] / *Rec) -9/Recycling (discovered 2 exits: [*Fac] / *Scr) -9/Scraptown (discovered 2 exits: *Fac x2) -6/Factory History --------- Turn | Location | Event 7 | -11/Scrapyard | Discovered new exit (range 16) 122 | -11/Scrapyard | Entered Materials 152 | -10/Materials | Identified exit to Mines 317 | -10/Materials | Build established: Mutant 365 | -10/Materials | Discovered new exit (range 16) 382 | -10/Materials | Entered another Materials area 382 | -9/Materials | Evolved 2 slots: Utility x2 490 | -9/Materials | Discovered new exit (range 8) 550 | -9/Materials | Discovered new exit (range 16) 663 | -9/Materials | Entered Storage 1034 | -9/Storage | Used back door to open Recycling access 1034 | -9/Storage | Discovered new exit (range 5) 1416 | -9/Storage | Identified exit to Recycling 1551 | -9/Storage | Discovered new exit (range 16) 1574 | -9/Storage | Assisted by bots powering up and referring to "LRC-V3" 1858 | -9/Storage | Build established: Commander-Mutant 2121 | -9/Storage | Repaired Shield Generator 2160 | -9/Storage | Repaired Adv. Treads 2246 | -9/Storage | Met a pair of Derelict thieves 2564 | -9/Storage | Repaired Lgt. Armor Plating 2591 | -9/Storage | Repaired Lgt. Armor Plating 2982 | -9/Storage | Entered Recycling 2982 | -9/Recycling | Accompanied by 7 allies 3001 | -9/Recycling | Scanned before Scraplab entrance 3292 | -9/Recycling | Discovered new exit (range 16) 4287 | -9/Recycling | Entered Scraplab 4298 | -9/Recycling | Discovered new exit (range 4) 4302 | -9/Recycling | Entered Scraptown 4302 | -9/Scraptown | Accompanied by 5 allies 4664 | -9/Scraptown | Discovered new exit (range 7) 4816 | -9/Scraptown | Visited Shadow of the Wyrm 4848 | -9/Scraptown | Visited Spacefarers 5175 | -9/Scraptown | Visited Red Mages 5258 | -9/Scraptown | Visited UFD Registry 5268 | -9/Scraptown | Visited Comm Corps 5281 | -9/Scraptown | Registered with UFD as "Spikeguard" 5383 | -9/Scraptown | Visited Cyclists 5403 | -9/Scraptown | Entered Cyclist Reading Room 5426 | -9/Scraptown | Visited TADAMA 5544 | -9/Scraptown | Visited Curators Association 5564 | -9/Scraptown | Visited A0-MCA Data Center 5573 | -9/Scraptown | Given an A- rating by A0-MCA 5605 | -9/Scraptown | Visited Botcube Research 5885 | -9/Scraptown | Found Botcube 5918 | -9/Scraptown | Found A0-MCA's Component Scanner 5960 | -9/Scraptown | Visited Abandonware Association 5977 | -9/Scraptown | Learned abandonware demo "ERRANTS.EXE" 6051 | -9/Scraptown | Visited DA-N13 Charitable Foundation 6064 | -9/Scraptown | Found DCF Scrap (30 items) 6105 | -9/Scraptown | Visited Scrap Suit Storage 6115 | -9/Scraptown | Found Scrap Suit 6119 | -9/Scraptown | Found Scrap Suit 6167 | -9/Scraptown | Visited Chapter 10 6229 | -9/Scraptown | Discovered new exit (range 5) 6343 | -9/Scraptown | Visited Science Testing Area 6367 | -9/Scraptown | Visited Derelict Rescue Squad 6406 | -9/Scraptown | Visited Sword Containment 6574 | -9/Scraptown | Met Optimus 6574 | -9/Scraptown | Accepted into 0bPrime 6678 | -9/Scraptown | Entered Factory 6678 | -6/Factory | Accompanied by 5 allies 6678 | -6/Factory | Evolved 6 slots: Power x1, Propulsion x1, Utility x3, Weapon x1 7271 | -6/Factory | Build established: Mutant 7853 | -6/Factory | Core integrity fell below 50% 7895 | -6/Factory | Lost 15 parts (2p3n5u5w) 7904 | -6/Factory | Core integrity fell below 20% 7931 | -6/Factory | Cargo convoy interrupted 7937 | -6/Factory | System corruption reached 10% 7974 | -6/Factory | Destroyed by P-60 Hacker with Shock Rifle Last Messages --------------- 07934_ X-72 Disruptor unfolds itself. 07934_ P-60 Hacker resets P-60 Hacker, system corruption cleaned. 07934_ R-10 Processor collects Wheel. 07936_ P-60 Hacker resets R-10 Processor, system corruption cleaned. 07940_ P-60 Hacker resets P-60 Hacker, system corruption cleaned. 07941_ System corrupted: Heat flow error (+177). 07948_ P-60 Hacker resets S-27 Virus, system corruption cleaned. 07956_ VIHMLUHKNK GPS&FOH8S 07962_ Scrap Suit destroyed. 07967_ Connecting with Repair Station... 07967_ Dropped Botcube. 07967_ Dropped Imp. Cooling System. 07968_ Dropped Hcp. Matter Pod. 07968_ Dropped Imp. Reaction Control System. 07974_ Acquired Botcube. [Achievement: Just Browsing] Map ----- +----------------------------------------------------+ | ???"" """" !! # % ### # # | | ???"" " """" # % ######### # | | ?"""" " """" + # =## # | | # """" " """" #??? | | # "%"! """" #??? | | ###+##################% ## """" #??? | | # ## " # """" #??? | | # ## # #??? | | # ## # """" #??? | | # ## """ +?"""" #??? | | # ## """ #?"""?? +??? | | # ## """ #?"??? ?#??? | | # ## *] #???? ????? | | # """ ## *] ####+####??? | | / """ ############/### #??? | | # """ #???????# #??? | | # % #???????# T" ?? | | # % #???????# "" ?? | | ##### ######%############### ? | | ?######+##########????# # #??? | | ?# #???????# """ # ## ! #??? | | ?# """"" #???????# """ # #?###+####??? | | ?# """"" #???????# """ #gi #???????????? | | ?# """ #???????# s pp x #???????????? | | ?# #???????# !!pgg # #???????????? | | ?# #???????# "@"" # #???????????? | | ?# #???????# "R"" # #???????????? | | ?# ! #???????# """ # #???????????? | | ?# ! #???????########## #???????????? | | ?# #????????????????# #???????????? | | ?# #????????????????# #???????????? | | ?# #??????+####?????# #???????????? | | ?#####/############# ?????? #???????????? | | ?????# ????? #???????????? | | ?????# #????????##/###???????????? | | ?????# " #?????????? ?????????????? | | ?????# "" #?????????? ?????????????? | | ?????# G #?????????? ??????????????? | | ?????# "" #######?????????????????????????? | | ?????# " #???????????????????????????????? | | ?????# #???????????????????????????????? | | ?????# #???????????????????????????????? | | ?????# """ #???????????????????????????????? | | ?????# """ #???????????????????????????????? | | ?????# """ #???????????????????????????????? | | ###### """ #???????????????????????????????? | | + #???????????????????????????????? | | # ! #####???????????????????????????????? | | # #???????????????????????????????????? | | """" # #???????????????????????????????????? | +----------------------------------------------------+ Best States ------------- Heat Dissipation 42 Energy Generation 23 Energy Capacity 460 Matter Stores 500 Matter Capacity 500 Sight Range 16 Robot Scan Range 14 Terrain Scan Density 10 Armor Coverage 150 Resistance: KI 20 Evasion (%) 50 Recoil Reduction 3 Offensive Hacking 10 Item Schematics ----------------- Titanium Leg | -9/Recycling | Hacked Robot Schematics ------------------ None Fabricated ------------ Nothing Repaired ---------- Shield Generator | 53% | -9/Storage Adv. Treads | 74% | -9/Storage Lgt. Armor Plating | 30% | -9/Storage Lgt. Armor Plating | 65% | -9/Storage Alien Tech Used ----------------- None Achievements -------------- Just Browsing Quantum Hacking Challenges ------------ None Game ------ Seed OmegaImprovedInsulator Manual? 0 Play Time 01:37:18 Cumulative 30.8 hours Start 2025.05.17 @ 23:11:43 End 2025.05.18 @ 00:54:31 Sessions 1 Manual Loads 0 Difficulty Rogue Special Mode None Game No. 24 Rogue 24 Adventurer 0 Explorer 0 Win Type - Total 0 Types 0/0/0/0/0/0/0/0/0/0 Lore% 32 Gallery% 25 Achievement% 21 Wizard Run 0 Options --------- Layout 1 ASCII 0 Keyboard 0 Movement Mouse Keybinds 0 Fullscreen 1 Font 24/Smallcaps Map View 50x35 Zoom Use 0% Tactical HUD 1 Map Filters NONE Filters NONE Steam 1 RUN: 5a57de09-17e0-428b-bc20-18a40b21930c